bitfinex-derivatives/quotes_BTCF0:USTF0_20240913
["timestamp","ask_amount","ask_price","bid_price","bid_amount"]
[1726234336147,0.004,57833.0,57832.0,0.086453]
[1726234336438,0.08765001,57834.0,57833.0,0.086451]
[1726234336628,0.08645,57834.0,57833.0,0.086451]
[1726234337234,0.086451,57833.0,57829.0,0.086457]
[1726234337750,0.086455,57831.0,57829.0,0.086457]
[1726234337940,0.086455,57831.0,57823.0,0.3608]
[1726234338264,0.086459,57828.0,57825.0,0.086463]
[1726234338433,0.086464,57825.0,57823.0,0.3608]
[1726234338947,0.086464,57825.0,57824.0,0.086464]
[1726234339135,0.27,57829.0,57823.0,0.3608]
[1726234339334,0.086464,57825.0,57823.0,0.3608]
[1726234340156,0.27,57829.0,57825.0,0.086462]
[1726234340939,0.27,57829.0,57821.0,0.086469]
[1726234341142,0.27,57829.0,57809.0,0.46161107]
[1726234341143,0.3608,57822.0,57814.0,0.004]
[1726234341347,0.3468,57822.0,57814.0,0.3608]
[1726234341546,0.3468,57822.0,57821.0,0.086469]
[1726234342146,0.3608,57827.0,57826.0,0.086461]
[1726234342941,0.44726,57827.0,57826.0,0.086461]
[1726234343342,0.3608,57827.0,57826.0,0.086461]
[1726234343847,0.717243,57839.0,57831.0,0.086453]
[1726234344051,0.08645,57834.0,57833.0,0.08645]
[1726234344345,0.086456,57830.0,57829.0,0.086456]
[1726234344940,0.08646,57828.0,57826.0,0.004]
[1726234345137,0.3608,57831.0,57819.0,0.4083]
[1726234345449,0.3608,57831.0,57813.0,0.004]
[1726234345450,0.172958,57814.0,57813.0,0.004]
[1726234345651,0.08649,57807.0,57806.0,0.086491]
[1726234345849,0.086494,57804.0,57803.0,0.3608]
[1726234346747,0.718449,57808.0,57794.0,0.36]
[1726234346939,0.718449,57808.0,57790.0,0.004]
[1726234346940,0.086503,57798.0,57790.0,0.004]
[1726234347143,0.3608,57808.0,57789.0,0.6308]
[1726234347144,0.0504,57807.0,57789.0,0.6308]
[1726234347341,0.27132001,57808.0,57805.0,0.086492]
[1726234347541,0.6308,57814.0,57799.0,0.27]
[1726234347746,0.3608,57816.0,57806.0,0.10049]
[1726234348047,0.3608,57816.0,57810.0,0.3608]
[1726234348445,0.3608,57816.0,57815.0,0.086478]
[1726234348645,0.086468,57822.0,57815.0,0.3608]
[1726234348949,0.086468,57822.0,57818.0,0.086473]
[1726234349149,0.086468,57822.0,57815.0,0.3608]
[1726234349353,0.086463,57825.0,57822.0,0.086466]
[1726234349553,0.086466,57823.0,57821.0,0.3608]
[1726234350353,0.086467,57822.0,57821.0,0.3608]
[1726234350561,0.3608,57826.0,57822.0,0.086467]
[1726234350856,0.3608,57826.0,57821.0,0.3608]
[1726234351047,0.0465,57835.0,57822.0,0.27]
[1726234351244,0.08645,57834.0,57830.0,0.086455]
[1726234351455,0.004,57844.0,57836.0,0.086447]
[1726234351657,0.086445,57837.0,57836.0,0.3608]
[1726234351957,0.086445,57837.0,57831.0,0.3608]
[1726234352544,0.086438,57842.0,57836.0,0.3608]
[1726234352857,0.3648,57848.0,57838.0,0.086443]
[1726234353155,0.3648,57848.0,57840.0,0.08644]
[1726234353156,0.3608,57848.0,57840.0,0.08644]
[1726234353457,0.3608,57848.0,57842.0,0.086438]
[1726234353755,0.3608,57848.0,57846.0,0.27]
[1726234354052,0.0537,57856.0,57847.0,0.3608]
[1726234354053,0.136117,57856.0,57847.0,0.3608]
[1726234354254,0.086412,57859.0,57855.0,0.3608]
[1726234354456,0.086412,57859.0,57855.0,0.447217]
[1726234354955,0.004,57869.0,57855.0,0.9916]
[1726234355255,0.086406,57863.0,57855.0,0.3608]
[1726234355456,0.27,57865.0,57855.0,0.3608]
[1726234355457,0.086412,57860.0,57855.0,0.447218]
[1726234355652,0.27,57865.0,57858.0,0.086413]
[1726234355856,0.27,57865.0,57855.0,0.3608]
[1726234356358,0.27,57865.0,57855.0,0.3618]
[1726234356741,0.086411,57860.0,57856.0,0.3608]
[1726234357147,0.086404,57865.0,57856.0,0.3608]
[1726234357449,0.3608,57868.0,57865.0,0.086402]
[1726234357962,0.3608,57868.0,57862.0,0.3608]
[1726234358145,0.3608,57868.0,57863.0,0.086406]
[1726234358146,0.0864,57867.0,57863.0,0.086406]
[1726234358347,0.086403,57865.0,57862.0,0.3608]
[1726234358944,0.63196,57868.0,57862.0,0.3608]
[1726234358945,0.36496,57868.0,57862.0,0.3608]
[1726234359143,0.36496,57868.0,57864.0,0.086404]
[1726234359144,0.086402,57866.0,57864.0,0.086404]
[1726234359358,0.3638,57868.0,57862.0,0.3608]
[1726234359554,0.086406,57863.0,57862.0,0.3608]
[1726234359862,0.0864,57867.0,57862.0,0.3608]
[1726234360055,0.086406,57863.0,57862.0,0.3608]
[1726234360257,0.086412,57859.0,57856.0,0.447216]
[1726234360453,0.10330543,57865.0,57860.0,0.08641]
[1726234360454,0.086406,57863.0,57860.0,0.08641]
[1726234360649,0.10330543,57865.0,57862.0,0.3608]
[1726234360850,0.10330543,57867.0,57866.0,0.086402]
[1726234361061,0.46410543,57868.0,57867.0,0.0864]
[1726234361451,0.3608,57868.0,57867.0,0.0864]
[1726234361651,0.447199,57868.0,57867.0,0.0864]
[1726234362149,0.132787,57877.0,57867.0,0.0864]
[1726234362150,0.18969843,57872.0,57867.0,0.3608]
[1726234362553,0.086393,57872.0,57871.0,0.086394]
[1726234363062,0.006,57868.0,57867.0,0.4482]
[1726234364049,0.10330543,57880.0,57867.0,1.56664]
[1726234364249,0.086379,57881.0,57875.0,0.3608]
[1726234364548,0.086379,57881.0,57880.0,0.3608]
[1726234364749,0.086381,57881.0,57880.0,0.3608]
[1726234364950,0.086381,57881.0,57871.0,0.317]
[1726234364951,0.086389,57875.0,57873.0,0.086391]
[1726234365158,0.086389,57875.0,57871.0,0.047]
[1726234365159,0.086389,57875.0,57874.0,0.08639]
[1726234366357,0.005,57875.0,57874.0,0.08639]
[1726234367764,0.086393,57872.0,57871.0,0.047]
[1726234367962,0.086394,57871.0,57870.0,0.447194]
[1726234368157,0.086391,57874.0,57873.0,0.086391]
[1726234369265,0.086394,57871.0,57870.0,0.3608]
[1726234369858,0.086394,57871.0,57870.0,0.447196]
[1726234370160,0.086394,57871.0,57870.0,0.086396]
[1726234371549,0.086394,57871.0,57867.0,0.0864]
[1726234371757,0.086404,57866.0,57865.0,0.086402]
[1726234372054,0.086405,57864.0,57863.0,0.3608]
[1726234373462,0.086406,57863.0,57862.0,0.086406]
[1726234373969,0.086406,57863.0,57857.0,0.4104]
[1726234373970,0.086412,57860.0,57859.0,0.086412]
[1726234374668,0.083412,57860.0,57859.0,0.086412]
[1726234375670,0.086406,57863.0,57862.0,0.086406]
[1726234376166,0.086413,57860.0,57859.0,0.086412]
[1726234376371,0.086413,57860.0,57859.0,0.093412]
[1726234376762,0.172827,57860.0,57859.0,0.007]
[1726234377072,0.081415,57857.0,57856.0,0.086416]
[1726234377372,0.086423,57854.0,57853.0,0.086421]
[1726234377760,0.086423,57852.0,57851.0,0.3608]
[1726234378063,0.081423,57852.0,57851.0,0.3608]
[1726234378572,0.08642,57854.0,57851.0,0.3608]
[1726234378864,0.3608,57861.0,57856.0,0.086415]
[1726234379069,0.086416,57857.0,57856.0,0.086415]
[1726234379270,0.086423,57852.0,57851.0,0.3608]
[1726234379468,0.161846,57852.0,57851.0,0.3608]
[1726234379875,0.248269,57852.0,57851.0,0.3608]
[1726234380263,0.086435,57844.0,57843.0,0.004]
[1726234380464,0.086435,57844.0,57833.0,0.0047]
[1726234380465,0.08645,57834.0,57833.0,0.3608]
[1726234380659,0.356439,57841.0,57840.0,0.007]
[1726234381056,0.344439,57841.0,57840.0,0.007]
[1726234381274,0.086439,57841.0,57840.0,0.007]
[1726234381467,0.086434,57845.0,57843.0,0.086436]
[1726234381666,0.086434,57845.0,57844.0,0.093435]
[1726234381969,0.004,57851.0,57844.0,0.007]
[1726234382267,0.086424,57851.0,57850.0,0.007]
[1726234382865,0.447224,57851.0,57850.0,0.007]
[1726234383364,0.3608,57857.0,57850.0,0.007]
[1726234383571,0.086411,57860.0,57858.0,0.086414]
[1726234383765,0.086411,57860.0,57859.0,0.007]
[1726234384269,0.3608,57864.0,57859.0,0.007]
[1726234384576,0.086426,57850.0,57849.0,0.004]
[1726234384788,0.356424,57851.0,57850.0,0.007]
[1726234384960,0.086429,57848.0,57847.0,0.3608]
[1726234385470,0.086429,57848.0,57847.0,0.3678]
[1726234386263,0.086429,57848.0,57847.0,0.007]
[1726234386570,0.086436,57843.0,57842.0,0.08997935]
[1726234386772,0.086432,57846.0,57842.0,0.08597935]
[1726234386967,0.086432,57846.0,57842.0,0.44677935]
[1726234387273,0.086432,57846.0,57845.0,0.093433]
[1726234387665,0.086427,57850.0,57845.0,0.007]
[1726234387866,0.3608,57852.0,57851.0,0.007]
[1726234388070,0.447223,57852.0,57851.0,0.007]
[1726234388266,0.3608,57852.0,57851.0,0.093424]
[1726234388475,0.086417,57856.0,57851.0,0.007]
[1726234388661,0.717206,57864.0,57851.0,0.007]
[1726234388662,0.0496,57863.0,57855.0,0.007]
[1726234388867,0.3608,57864.0,57862.0,0.007]
[1726234389162,0.447205,57864.0,57863.0,0.007]
[1726234389769,0.3608,57864.0,57863.0,0.093406]
[1726234390164,0.460205,57864.0,57863.0,0.007]
[1726234391372,0.3738,57864.0,57863.0,0.093406]
[1726234391576,0.013,57864.0,57863.0,0.007]
[1726234391871,0.087405,57864.0,57863.0,0.007]
[1726234392294,0.17381,57864.0,57863.0,0.007]
[1726234392482,0.17381,57864.0,57858.0,0.3608]
[1726234392483,0.172824,57859.0,57858.0,0.3608]
[1726234392674,0.356412,57859.0,57858.0,0.3608]
[1726234392980,0.086405,57864.0,57858.0,0.007]
[1726234392981,0.3608,57860.0,57858.0,0.007]
[1726234393181,0.086408,57862.0,57861.0,0.086409]
[1726234393371,0.086408,57862.0,57861.0,0.093409]
[1726234393674,0.3608,57867.0,57862.0,0.086406]
[1726234393978,0.4472,57867.0,57866.0,0.007]
[1726234394883,0.0864,57867.0,57866.0,0.093402]
[1726234395676,0.0864,57867.0,57866.0,0.007]
[1726234395876,0.086414,57858.0,57857.0,0.3608]
[1726234396082,0.356414,57858.0,57857.0,0.3608]
[1726234396271,0.086414,57858.0,57857.0,0.3678]
[1726234397278,0.6308,57858.0,57848.0,0.086428]
[1726234397582,0.172854,57849.0,57842.0,0.004]
[1726234397768,0.172854,57849.0,57836.0,0.06876762]
[1726234397769,0.086433,57845.0,57844.0,0.007]
[1726234398881,0.086433,57845.0,57837.0,0.3608]
[1726234398882,0.086444,57838.0,57837.0,0.3608]
[1726234399179,0.086444,57838.0,57837.0,0.3678]
[1726234399673,0.086444,57838.0,57837.0,0.007]
[1726234400074,0.087444,57838.0,57837.0,0.015]
[1726234400991,1.11968,57838.0,57825.0,0.004]
[1726234401286,0.086466,57823.0,57822.0,0.004]
[1726234401471,0.086466,57823.0,57817.0,0.3655]
[1726234401472,0.6308,57823.0,57815.0,0.05157571]
[1726234401671,0.086473,57818.0,57817.0,0.007]
[1726234401879,0.356473,57818.0,57817.0,0.007]
[1726234403187,0.001,57818.0,57817.0,0.007]
[1726234403973,0.001,57818.0,57817.0,0.093475]
[1726234404474,0.001,57818.0,57817.0,0.007]
[1726234404879,0.271,57818.0,57817.0,0.007]
[1726234405185,0.271,57818.0,57812.0,0.3608]
[1726234405186,0.086481,57813.0,57812.0,0.3608]
[1726234405391,0.6308,57813.0,57803.0,0.004]
[1726234405579,0.6308,57813.0,57811.0,0.007]
[1726234405580,0.133382,57812.0,57811.0,0.007]
[1726234405886,0.172974,57809.0,57808.0,0.007]
[1726234406088,0.086487,57809.0,57808.0,0.007]
[1726234406589,0.086497,57802.0,57801.0,0.3608]
[1726234406788,0.356497,57802.0,57801.0,0.3608]
[1726234406989,0.356497,57802.0,57801.0,0.007]
[1726234407585,0.717292,57806.0,57801.0,0.007]
[1726234407786,0.086494,57804.0,57803.0,0.007]
[1726234409088,0.086494,57804.0,57801.0,0.086499]
[1726234409089,0.086494,57804.0,57796.0,0.3608]
[1726234409393,0.001,57804.0,57802.0,0.007]
[1726234409581,0.086496,57803.0,57802.0,0.007]
[1726234410202,0.086512,57792.0,57791.0,0.004]
[1726234410488,0.6308,57792.0,57781.0,0.3608]
[1726234410788,0.086515,57790.0,57789.0,0.007]
[1726234410991,0.447313,57792.0,57789.0,0.007]
[1726234410992,0.3608,57792.0,57789.0,0.007]
[1726234411286,0.447312,57792.0,57791.0,0.007]
[1726234411587,0.808112,57792.0,57790.0,0.007]
[1726234411785,0.808112,57792.0,57782.0,0.086526]
[1726234411988,0.447312,57792.0,57790.0,0.007]
[1726234412198,0.356514,57791.0,57790.0,0.007]
[1726234413378,0.357514,57791.0,57790.0,0.007]
[1726234413793,0.001,57791.0,57790.0,0.007]
[1726234413992,0.08651,57794.0,57790.0,0.093515]
[1726234414183,0.08651,57794.0,57792.0,0.086512]
[1726234414387,0.3608,57798.0,57793.0,0.007]
[1726234414700,0.004,57803.0,57802.0,0.086497]
[1726234414997,0.004,57803.0,57802.0,0.447297]
[1726234415195,0.3608,57812.0,57809.0,0.086487]
[1726234415493,0.447282,57812.0,57811.0,0.007]
[1726234415883,0.533764,57812.0,57811.0,0.007]
[1726234416080,0.086494,57804.0,57803.0,0.36]
[1726234416480,0.172988,57804.0,57803.0,0.36]
[1726234417196,0.086514,57791.0,57790.0,0.086515]
[1726234417487,0.086509,57795.0,57788.0,0.3608]
[1726234417693,0.086509,57795.0,57794.0,0.007]
[1726234418292,0.27,57797.0,57795.0,0.086507]
[1726234418481,0.27,57797.0,57796.0,0.007]
[1726234419091,0.086505,57797.0,57796.0,0.093505]
[1726234419487,0.087505,57797.0,57796.0,0.093505]
[1726234419899,0.357505,57797.0,57796.0,0.007]
[1726234420400,0.086515,57791.0,57789.0,0.36]
[1726234420594,0.086509,57795.0,57793.0,0.08651]
[1726234420895,0.271,57797.0,57796.0,0.007]
[1726234421088,0.271,57797.0,57796.0,0.093506]
[1726234421283,0.357505,57797.0,57796.0,0.093506]
[1726234421490,0.357505,57797.0,57796.0,0.007]
[1726234421899,0.356505,57797.0,57796.0,0.007]
[1726234422091,0.086513,57792.0,57791.0,0.086514]
[1726234422487,0.443026,57792.0,57791.0,0.007]
[1726234423698,0.357513,57792.0,57791.0,0.093514]
[1726234424303,0.087513,57792.0,57791.0,0.093514]
[1726234424493,0.001,57792.0,57791.0,0.093514]
[1726234424893,0.357512,57792.0,57791.0,0.007]
[1726234425501,0.087512,57792.0,57791.0,0.007]
[1726234425811,0.174024,57792.0,57791.0,0.007]
[1726234426399,0.087512,57792.0,57791.0,0.007]
[1726234426601,0.174024,57792.0,57791.0,0.007]
[1726234426900,0.087512,57792.0,57791.0,0.007]
[1726234427099,0.174024,57792.0,57791.0,0.007]
[1726234429000,0.174024,57792.0,57784.0,0.136323]
[1726234429001,0.086526,57783.0,57781.0,0.06876762]
[1726234429201,0.08652,57787.0,57782.0,0.05855791]
[1726234429202,0.27,57786.0,57782.0,0.05855791]
[1726234429403,0.6308,57783.0,57782.0,0.007]
[1726234429605,0.717326,57783.0,57782.0,0.14512489]
[1726234430005,0.3608,57783.0,57782.0,0.093527]
[1726234430192,0.3618,57783.0,57782.0,0.16229462]
[1726234430503,0.087526,57783.0,57782.0,0.17950635]
[1726234430703,0.087526,57783.0,57782.0,0.093527]
[1726234431493,0.001,57783.0,57782.0,0.093527]
[1726234431694,0.00116,57789.0,57788.0,0.086518]
[1726234431891,0.3274,57797.0,57796.0,0.086506]
[1726234432097,0.3274,57797.0,57796.0,0.65496092]
[1726234432098,0.32856,57797.0,57796.0,0.65496092]
[1726234432404,0.3274,57797.0,57796.0,1.01487543]
[1726234432604,0.3274,57797.0,57796.0,0.56877503]
[1726234433302,0.086497,57803.0,57802.0,0.086495]
[1726234433511,0.086497,57803.0,57802.0,0.1553956]
[1726234433803,0.086497,57803.0,57802.0,0.1623956]
[1726234434006,0.086489,57808.0,57806.0,0.08649]
[1726234434210,0.086489,57808.0,57807.0,0.05869849]
[1726234434211,0.086488,57808.0,57807.0,0.05869849]
[1726234434416,0.086488,57808.0,57807.0,0.007]
[1726234434903,0.3608,57812.0,57811.0,0.086484]
[1726234435107,0.3608,57812.0,57811.0,0.093484]
[1726234436807,0.086475,57817.0,57814.0,0.086479]
[1726234437019,0.086475,57817.0,57816.0,0.007]
[1726234438809,0.086475,57817.0,57816.0,0.05867149]
[1726234439007,0.087475,57817.0,57816.0,0.007]
[1726234439402,0.087475,57817.0,57816.0,0.05865227]
[1726234439807,0.086475,57817.0,57816.0,0.05865227]
[1726234440007,0.088475,57817.0,57816.0,0.05865227]
[1726234440201,0.002,57817.0,57816.0,0.16241199]
[1726234440400,0.356471,57820.0,57816.0,0.093476]
[1726234440603,0.356471,57820.0,57814.0,0.3608]
[1726234440604,0.356471,57820.0,57819.0,0.007]
[1726234441009,0.356471,57820.0,57819.0,0.05864723]
[1726234441319,0.086467,57822.0,57821.0,0.086468]
[1726234441508,0.08647,57820.0,57819.0,0.05164748]
[1726234441704,0.086464,57824.0,57823.0,0.007]
[1726234442300,0.006,57822.0,57815.0,0.05164748]
[1726234442504,0.3608,57818.0,57812.0,0.05164748]
[1726234442703,0.3608,57818.0,57812.0,0.007]
[1726234442704,0.803762,57813.0,57812.0,0.007]
[1726234443016,0.717281,57813.0,57812.0,0.007]
[1726234443313,0.3608,57813.0,57812.0,0.093482]
[1726234443616,0.3608,57813.0,57812.0,0.179964]
[1726234443806,0.3608,57818.0,57812.0,0.179964]
[1726234443807,0.3608,57818.0,57812.0,0.093482]
[1726234444005,0.3608,57818.0,57817.0,0.1450937]
[1726234444311,0.3608,57818.0,57817.0,0.093474]
[1726234444904,0.533746,57818.0,57817.0,0.007]
[1726234445108,0.583746,57818.0,57817.0,0.007]
[1726234445305,0.670219,57818.0,57817.0,0.007]
[1726234445503,0.086485,57810.0,57809.0,0.0516197]
[1726234445718,0.086485,57810.0,57808.0,0.0516197]
[1726234445909,0.086484,57811.0,57810.0,0.086485]
[1726234446300,0.086484,57811.0,57810.0,0.093485]
[1726234446709,0.447284,57811.0,57810.0,0.093485]
[1726234447012,0.533768,57811.0,57810.0,0.007]
[1726234447207,0.447284,57811.0,57810.0,0.007]
[1726234447517,0.447284,57811.0,57810.0,0.093485]
[1726234448209,0.448284,57811.0,57810.0,0.093485]
[1726234448514,0.087484,57811.0,57810.0,0.093485]
[1726234449009,0.086484,57811.0,57810.0,0.093485]
[1726234449427,0.086484,57811.0,57799.0,0.086501]
[1726234449713,0.0865,57801.0,57800.0,0.086499]
[1726234449907,0.086501,57800.0,57799.0,0.086502]
[1726234450304,0.086501,57800.0,57799.0,0.007]
[1726234450714,0.173001,57800.0,57799.0,0.007]
[1726234450912,0.086508,57795.0,57794.0,0.3608]
[1726234451111,0.717308,57795.0,57794.0,0.007]
[1726234451312,0.356508,57795.0,57794.0,0.007]
[1726234451708,0.27,57795.0,57794.0,0.093509]
[1726234451906,0.0865,57800.0,57799.0,0.086501]
[1726234452306,0.0865,57800.0,57799.0,0.093501]
[1726234452908,0.086494,57805.0,57804.0,0.086492]
[1726234453408,0.086494,57805.0,57804.0,0.093492]
[1726234453811,0.173,57800.0,57788.0,0.4122]
[1726234454018,0.08651,57794.0,57793.0,0.086511]
[1726234454219,0.356505,57797.0,57788.0,0.4075]
[1726234454422,0.356505,57797.0,57796.0,0.007]
[1726234454722,0.27,57797.0,57787.0,0.086518]
[1726234455015,0.27,57792.0,57790.0,0.007]
[1726234455219,0.356514,57791.0,57790.0,0.007]
[1726234455424,0.443028,57791.0,57790.0,0.007]
[1726234456011,0.086529,57781.0,57780.0,0.0483]
[1726234456211,0.086529,57781.0,57779.0,0.13815941]
[1726234456212,0.086531,57780.0,57779.0,0.13815941]
[1726234456414,0.27,57781.0,57779.0,0.007]
[1726234456616,0.356529,57781.0,57780.0,0.007]
[1726234457326,0.443058,57781.0,57780.0,0.007]
[1726234457918,0.356529,57781.0,57780.0,0.007]
[1726234459219,0.6308,57785.0,57780.0,0.007]
[1726234459420,0.6308,57785.0,57781.0,0.007]
[1726234459725,0.3608,57785.0,57784.0,0.007]
[1726234459918,0.27,57791.0,57784.0,0.3678]
[1726234460118,0.356514,57791.0,57790.0,0.007]
[1726234462013,0.086512,57793.0,57790.0,0.093515]
[1726234462219,0.086512,57792.0,57790.0,0.086515]
[1726234462528,0.173025,57792.0,57790.0,0.086515]
[1726234462714,0.086512,57792.0,57791.0,0.007]
[1726234463931,0.3608,57795.0,57794.0,0.086509]
[1726234464120,0.086506,57797.0,57796.0,0.086506]
[1726234464429,0.086506,57797.0,57796.0,0.093506]
[1726234464727,0.086506,57797.0,57796.0,0.007]
[1726234465025,0.3608,57801.0,57799.0,0.0865]
[1726234465216,0.447299,57801.0,57800.0,0.0935]
[1726234465421,0.447299,57801.0,57800.0,0.007]
[1726234465621,0.717299,57801.0,57800.0,0.007]
[1726234466222,0.447299,57801.0,57800.0,0.0935]
[1726234466434,0.36196,57807.0,57800.0,0.007]
[1726234466619,0.36212001,57813.0,57808.0,0.086487]
[1726234466819,0.086484,57811.0,57810.0,0.007]
[1726234469028,0.172968,57811.0,57810.0,0.007]
[1726234469225,1.38892,57811.0,57800.0,0.41242841]
[1726234469427,0.356493,57805.0,57804.0,0.007]
[1726234469615,0.086493,57805.0,57804.0,0.086494]
[1726234469821,0.086483,57812.0,57811.0,0.086483]
[1726234470017,0.3608,57813.0,57812.0,0.093482]
[1726234470420,0.086475,57817.0,57816.0,0.086476]
[1726234470626,0.3629,57820.0,57819.0,0.086472]
[1726234470831,0.44937,57820.0,57819.0,0.093472]
[1726234472520,0.3669,57820.0,57819.0,0.093472]
[1726234472726,0.086454,57831.0,57819.0,0.693472]
[1726234472932,0.086454,57831.0,57828.0,0.3608]
[1726234473135,0.086443,57839.0,57836.0,0.086446]
[1726234473634,0.086443,57839.0,57828.0,0.3608]
[1726234473635,0.356443,57839.0,57838.0,0.007]
[1726234473833,0.086444,57838.0,57828.0,0.3608]
[1726234474030,0.086455,57831.0,57828.0,0.3608]
[1726234474330,0.36196,57833.0,57832.0,0.086453]
[1726234474535,0.3608,57833.0,57832.0,0.093453]
[1726234475533,0.447251,57833.0,57832.0,0.007]
[1726234476431,0.449251,57833.0,57832.0,0.007]
[1726234476837,0.719251,57833.0,57832.0,0.007]
[1726234478925,0.002,57833.0,57832.0,0.093453]
[1726234479130,0.3608,57846.0,57841.0,0.086439]
[1726234479333,0.3608,57846.0,57832.0,0.963453]
[1726234479334,0.3608,57846.0,57835.0,0.3608]
[1726234479534,0.447232,57846.0,57845.0,0.007]
[1726234480033,0.717232,57846.0,57845.0,0.007]
[1726234480235,0.447232,57846.0,57845.0,0.007]
[1726234480428,0.3608,57846.0,57845.0,0.093433]
[1726234481027,0.3718,57846.0,57845.0,0.093433]
[1726234481441,0.458232,57846.0,57845.0,0.093433]
[1726234481629,0.458232,57846.0,57845.0,0.007]
[1726234481931,0.717232,57846.0,57845.0,0.007]
[1726234482128,0.721232,57846.0,57845.0,0.007]
[1726234482924,0.721232,57846.0,57845.0,0.093433]
[1726234484034,0.3648,57846.0,57845.0,0.093433]
[1726234484634,0.451232,57846.0,57845.0,0.093433]
[1726234485136,0.451232,57846.0,57845.0,0.007]
[1726234485325,0.721232,57846.0,57845.0,0.007]
[1726234486625,0.086437,57843.0,57836.0,0.3608]
[1726234486827,0.0468,57845.0,57844.0,0.086435]
[1726234487026,0.3648,57846.0,57844.0,0.007]
[1726234487226,0.3648,57846.0,57845.0,0.093433]
[1726234487640,0.3608,57846.0,57845.0,0.093433]
[1726234488025,0.086427,57850.0,57845.0,0.007]
[1726234488338,0.086427,57850.0,57849.0,0.093425]
[1726234489042,0.086435,57844.0,57843.0,0.086436]
[1726234489228,0.086438,57842.0,57841.0,0.45692072]
[1726234489628,0.086438,57842.0,57841.0,0.454239]
[1726234489835,0.086434,57845.0,57844.0,0.08643]
[1726234490343,0.086434,57845.0,57844.0,0.09343]
[1726234490545,0.08643,57848.0,57847.0,0.08643]
[1726234490739,0.08643,57848.0,57847.0,0.09343]
[1726234491642,0.09243,57848.0,57847.0,0.09443]
[1726234493446,0.09243,57848.0,57847.0,0.45523]
[1726234493645,0.006,57848.0,57847.0,0.45523]
[1726234496049,0.006,57848.0,57847.0,0.62809]
[1726234496842,0.086409,57863.0,57862.0,0.086407]
[1726234497043,0.00128,57867.0,57866.0,0.086402]
[1726234497246,0.086396,57870.0,57869.0,0.086397]
[1726234497446,0.086396,57870.0,57869.0,0.093397]
[1726234499049,0.086378,57883.0,57869.0,0.007]
[1726234499050,0.27,57880.0,57869.0,0.007]
[1726234499357,0.012,57870.0,57869.0,0.087397]
[1726234499739,0.012,57870.0,57869.0,0.094397]
[1726234500753,0.44719,57874.0,57872.0,0.086391]
[1726234500954,0.44719,57874.0,57873.0,0.007]
[1726234501156,0.71719,57874.0,57873.0,0.007]
[1726234501359,0.71719,57874.0,57869.0,0.001]
[1726234501360,0.76093807,57874.0,57869.0,0.001]
[1726234501556,0.008,57870.0,57869.0,0.087397]
[1726234501850,0.55373516,57870.0,57869.0,0.001]
[1726234502058,1.61288067,57870.0,57869.0,0.001]
[1726234502240,0.086397,57869.0,57856.0,0.3608]
[1726234502555,0.18934418,57857.0,57856.0,0.3608]
[1726234502750,0.18934418,57857.0,57851.0,0.3608]
[1726234502751,0.27,57857.0,57851.0,0.3608]
[1726234503054,0.086418,57856.0,57851.0,0.3608]
[1726234503248,0.086423,57852.0,57851.0,0.3608]
[1726234503438,0.18939479,57852.0,57851.0,0.3608]
[1726234503844,0.086423,57852.0,57851.0,0.447224]
[1726234504058,0.086426,57850.0,57848.0,0.086427]
[1726234504242,0.10299435,57849.0,57848.0,0.086427]
[1726234504448,0.086426,57850.0,57849.0,0.086427]
[1726234504647,0.3608,57853.0,57843.0,0.0464]
[1726234504948,0.001,57852.0,57851.0,0.086424]
[1726234505246,0.12008405,57862.0,57851.0,0.965784]
[1726234505452,0.51954487,57870.0,57861.0,0.3608]
[1726234505453,0.12008405,57867.0,57861.0,0.3608]
[1726234505654,0.086408,57862.0,57861.0,0.3608]
[1726234505842,0.086408,57862.0,57861.0,0.447209]
[1726234506257,0.086402,57866.0,57865.0,0.086403]
[1726234506448,0.04338984,57866.0,57865.0,0.086403]
[1726234506749,0.20648005,57870.0,57869.0,0.086397]
[1726234506943,0.12995785,57870.0,57869.0,0.086397]
[1726234508039,0.67436185,57870.0,57861.0,0.3618]
[1726234508240,0.0864,57868.0,57861.0,0.3618]
[1726234508450,0.04356185,57867.0,57861.0,0.3618]
[1726234508644,0.27,57864.0,57861.0,0.3618]
[1726234508846,0.086408,57862.0,57861.0,0.3608]
[1726234509150,1.05912563,57862.0,57850.0,0.086425]
[1726234509354,0.086424,57851.0,57850.0,0.086425]
[1726234509553,0.3608,57862.0,57848.0,0.27]
[1726234509750,0.086408,57862.0,57861.0,0.086409]
[1726234510052,0.0462,57863.0,57862.0,0.086408]
[1726234510251,0.086398,57869.0,57860.0,0.3608]
[1726234510457,0.086398,57869.0,57861.0,0.27]
[1726234510658,0.086398,57869.0,57867.0,0.086399]
[1726234511151,0.086394,57872.0,57865.0,0.3608]
[1726234511540,0.3608,57874.0,57865.0,0.3608]
[1726234511748,0.684937,57883.0,57865.0,0.3608]
[1726234511749,0.086382,57880.0,57870.0,0.6308]
[1726234511952,0.086382,57880.0,57879.0,0.086382]
[1726234512464,0.086382,57880.0,57870.0,0.6803]
[1726234512465,0.0472,57881.0,57870.0,0.6803]